{"text_format":"3","workbook":"xlsx","n_sheets":4,"sheets":["Начало","Разходи","Приходи","Резюме за печалбата и загубата"],"not_rendered":{"charts":1},"read":"whole","date_system":"1900"}

{"sheet":"Начало","index":0,"n_rows":8,"n_cols":2,"rows_kept":8}
[null,"ЗА ТОЗИ ШАБЛОН"]
[null,"Използвайте тази работна книга \"Бюджет за събитие\", за да проследявате възникналите разходи и спечелените приходи от събитие."]
[null,"Попълнете име на събитие и въведете данни в таблиците в работния лист \"Разходи\" и работния лист \"Приходи\"."]
[null,"Общите разходи и общите приходи се изчисляват автоматично."]
[null,"Резюмето и диаграмата за печалбата и загубата се актуализират автоматично в работния лист \"Резюме за печалбата и загубата\"."]
[null,"Забележка: "]
[null,"Допълнителни инструкции са предоставени в колона A във всеки работен лист. Този текст е скрит нарочно. За да премахнете текста, изберете колона А, след което изберете DELETE. "]
[null,"За да научите повече за таблиците, натиснете SHIFT и след това F10 в таблица, изберете опцията ТАБЛИЦА, след което изберете АЛТЕРНАТИВЕН ТЕКСТ"]

{"sheet":"Разходи","index":1,"n_rows":32,"n_cols":8,"rows_kept":32,"merged":[[0,1,0,2],[0,3,0,4],[2,1,3,1]]}
["Въведете очакваните и действителните разходи за всяка категория в съответните таблици в този работен лист и име на събитие в клетка D1, за да персонализирате заглавието на този и на другите работни листове. Подзаглавието на този работен лист е в клетка H1. Полезни инструкции как да използвате този работен лист, можете да намерите в клетките в тази колона. Следващата инструкция е в клетка A3.","Бюджет за събитие за",null,"Име на събитие",{"$nulls":3},"РАЗХОДИ"]
[]
["Етикетът \"Общо разходи\" е в клетката вдясно, етикетът \"Очаквани\" е в клетка G3 и етикетът \"Действителни\" е в клетка H3.","ОБЩИ РАЗХОДИ",{"$nulls":4},"Очаквани","Действителни"]
["Общите очаквани разходи в клетка G4 и общите действителни разходи в H4 се изчисляват автоматично. Следващата инструкция е в клетка A6.",{"$nulls":5},{"$f":"SUM(C11,C19,C25,C32,G11,G19,G24)","v":{"v":882,"d":"882.00 лв."}},{"$f":"SUM(D11,D19,D25,D32,H11,H19,H24)","v":{"v":302,"d":"302.00 лв."}}]
[]
["Въведете разходите за място в таблицата, която започва от клетката вдясно, и разходите за \"Почерпка\" в таблицата, която започва от клетка F6. Следващата инструкция е в клетка A13.","Място","Очаквани","Действителни",null,"Почерпка","Очаквани","Действителни"]
[null,"Такси за стая/зала",{"v":500,"d":"500.00 лв."},null,null,"Храна"]
[null,"Персонал на мястото",{"$nulls":3},"Напитки",{"v":20,"d":"20.00 лв."}]
[null,"Оборудване",{"$nulls":3},"Покривки",null,{"v":20,"d":"20.00 лв."}]
[null,"Маси и столове",{"$nulls":3},"Персонал и бакшиш"]
[null,"Общо",{"$f":"SUBTOTAL(109,РазходиМясто[Очаквани])","v":{"v":500,"d":"500.00 лв."}},{"$f":"SUBTOTAL(103,РазходиМясто[Действителни])","v":{"v":0,"d":"0.00 лв."}},null,"Общо",{"$f":"SUBTOTAL(109,РазходиПочерпка[Очаквани])","v":{"v":20,"d":"20.00 лв."}},{"$f":"SUBTOTAL(103,РазходиПочерпка[Действителни])","v":{"v":1,"d":"1.00 лв."}}]
[]
["Въведете разходите за \"Украса\" в таблицата, която започва от клетката вдясно, и разходите за \"Програма\" в таблицата, която започва от клетка F13. Следващата инструкция е в клетка A21.","Украса","Очаквани","Действителни",null,"Програма","Очаквани","Действителни"]
[null,"Цветя",{"v":200,"d":"200.00 лв."},{"v":300,"d":"300.00 лв."},null,"Изпълнители"]
[null,"Свещи",{"$nulls":3},"Лектори",{"v":30,"d":"30.00 лв."}]
[null,"Осветление",{"$nulls":3},"Пътувания"]
[null,"Балони",{"$nulls":3},"Хотел"]
[null,"Хартиени консумативи",{"$nulls":3},"Други"]
[null,"Общо",{"$f":"SUBTOTAL(109,РазходиУкраса[Очаквани])","v":{"v":200,"d":"200.00 лв."}},{"$f":"SUBTOTAL(109,РазходиУкраса[Действителни])","v":{"v":300,"d":"300.00 лв."}},null,"Общо",{"$f":"SUBTOTAL(109,РазходиПрограма[Очаквани])","v":{"v":30,"d":"30.00 лв."}},{"$f":"SUBTOTAL(103,РазходиПрограма[Действителни])","v":{"v":0,"d":"0.00 лв."}}]
[]
["Въведете разходите за \"Реклама\" в таблицата, която започва от клетката вдясно, и разходите за \"Награди\" в таблицата, която започва от клетка F21. Следващата инструкция е в клетка A27.","Реклама","Очаквани","Действителни",null,"Награди","Очаквани","Действителни"]
[null,"Графични материали",{"$nulls":3},"Ленти/почетни значки/трофеи"]
[null,"Копирни услуги/печат",{"v":20,"d":"20.00 лв."},null,null,"Подаръци",{"v":100,"d":"100.00 лв."}]
[null,"Пощенски разходи",{"$nulls":3},"Общо",{"$f":"SUBTOTAL(109,РазходиНагради[Очаквани])","v":{"v":100,"d":"100.00 лв."}},{"$f":"SUBTOTAL(103,РазходиНагради[Действителни])","v":{"v":0,"d":"0.00 лв."}}]
[null,"Общо",{"$f":"SUBTOTAL(109,РазходиРеклама[Очаквани])","v":{"v":20,"d":"20.00 лв."}},{"$f":"SUBTOTAL(103,РазходиРеклама[Действителни])","v":{"v":0,"d":"0.00 лв."}}]
[]
["Въведете разходите за \"Други\" в таблицата, която започва от клетката вдясно.","Разни","Очаквано","Действителни"]
[null,"Телефон",null,{"v":13,"d":"13.00 лв."}]
[null,"Транспорт",{"v":12,"d":"12.00 лв."}]
[null,"Канцеларски материали"]
[null,"Факс услуги"]
[null,"Общо",{"$f":"SUBTOTAL(109,РазходиДруги[Очаквано])","v":{"v":12,"d":"12.00 лв."}},{"$f":"SUBTOTAL(103,РазходиДруги[Действителни])","v":{"v":1,"d":"1.00 лв."}}]

{"sheet":"Приходи","index":2,"n_rows":29,"n_cols":7,"rows_kept":29,"merged":[[0,1,0,2],[2,1,3,1]]}
["Въведете очакваните и действителните приходи за всяка категория в съответните таблици в този работен лист. Заглавието на този работен лист се актуализира автоматично в клетката вдясно. Подзаглавието е в клетка G1. Полезни инструкции как да използвате този работен лист, можете да намерите в клетките в тази колона. Следващата инструкция е в клетка A3.",{"$f":"Разходи!B1","v":"Бюджет за събитие за"},null,{"$f":"Разходи!D1","v":"Име на събитие"},null,null,"ПРИХОДИ"]
[]
["Етикетът \"Приходи\" е в клетката вдясно, етикетът \"Очаквани\" е в клетка F3, а етикетът \"Действителни\" е в клетка G3.","ОБЩО ПРИХОДИ",{"$nulls":3},"Очаквани","Действителни"]
["Общите очаквани приходи се изчисляват автоматично в клетка F4, а общите действителни приходи – в G4.",{"$nulls":4},{"$f":"SUM(Вход[[#Totals],[Очаквани приходи]],РекламиВПрограмата[[#Totals],[Очаквани приходи]],ИзложителиИДоставчици[[#Totals],[Очаквани приходи]],РазпродажбаНаАртикули[[#Totals],[Очаквани приходи]])","v":{"v":1936,"d":"1,936.00 лв."}},{"$f":"SUM(Вход[[#Totals],[Действителни приходи]],РекламиВПрограмата[[#Totals],[Действителни приходи]],ИзложителиИДоставчици[[#Totals],[Действителни приходи]],РазпродажбаНаАртикули[[#Totals],[Действителни приходи]])","v":{"v":1831,"d":"1,831.00 лв."}}]
["Етикетът за \"Такси за вход\" е в клетката вдясно.","ТАКСИ ЗА ВХОД"]
["Въведете очакван и действителен брой такси за вход с цени на билетите в таблицата, започвайки от клетката вдясно. Очакваните и действителните приходи от таксите за вход се изчисляват автоматично. Следващата инструкция е в клетка A11.","Очакван №","Действителен №","Тип","Цена","Очаквани приходи","Действителни приходи"]
[null,300,278,"Възрастни @",{"v":5,"d":"5.00 лв."},{"$f":"B7*E7","v":{"v":1500,"d":"1,500.00 лв."}},{"$f":"C7*E7","v":{"v":1390,"d":"1,390.00 лв."}}]
[null,197,195,"Деца @",{"v":2,"d":"2.00 лв."},{"$f":"B8*E8","v":{"v":394,"d":"394.00 лв."}},{"$f":"C8*E8","v":{"v":390,"d":"390.00 лв."}}]
[null,42,51,"Други @",{"v":1,"d":"1.00 лв."},{"$f":"B9*E9","v":{"v":42,"d":"42.00 лв."}},{"$f":"C9*E9","v":{"v":51,"d":"51.00 лв."}}]
[null,"Общо",{"$nulls":3},{"$f":"SUBTOTAL(109,Вход[Очаквани приходи])","v":{"v":1936,"d":"1,936.00 лв."}},{"$f":"SUBTOTAL(109,Вход[Действителни приходи])","v":{"v":1831,"d":"1,831.00 лв."}}]
["Етикетът за \"Реклами в програмата\" е в клетката вдясно.","РЕКЛАМИ В ПРОГРАМАТА"]
["Въведете очакван и действителен брой реклами в програмата с цени на рекламите в таблицата, започвайки от клетката вдясно. Очакваните и действителните приходи от реклами се изчисляват автоматично. Следващата инструкция е в клетка A17.","Очакван №","Действителен №","Тип","Цена","Очаквани приходи","Действителни приходи"]
[null,12,null,"Титулни страници @",null,{"$f":"B13*E13","v":{"v":0,"d":"0.00 лв."}},{"$f":"C13*E13","v":{"v":0,"d":"0.00 лв."}}]
[null,null,158,"Половин страници @",null,{"$f":"B14*E14","v":{"v":0,"d":"0.00 лв."}},{"$f":"C14*E14","v":{"v":0,"d":"0.00 лв."}}]
[null,4,null,"Четвърт страници @",null,{"$f":"B15*E15","v":{"v":0,"d":"0.00 лв."}},{"$f":"C15*E15","v":{"v":0,"d":"0.00 лв."}}]
[null,"Общо",{"$nulls":3},{"$f":"SUBTOTAL(109,РекламиВПрограмата[Очаквани приходи])","v":{"v":0,"d":"0.00 лв."}},{"$f":"SUBTOTAL(109,РекламиВПрограмата[Действителни приходи])","v":{"v":0,"d":"0.00 лв."}}]
["Етикетът за \"Участници в изложбата или доставчици\" е в клетката вдясно.","УЧАСТНИЦИ В ИЗЛОЖБАТА/ДОСТАВЧИЦИ"]
["Въведете очакван и действителен брой участници в изложбата и доставчици и цени за щанд в таблицата, започвайки от клетката вдясно. Очакваните и действителните приходи се изчисляват автоматично. Следващата инструкция е в клетка A23.","Очакван №","Действителен №","Тип","Цена","Очаквани приходи","Действителни приходи"]
[null,23,null,"Големи щандове @",null,{"$f":"B19*E19","v":{"v":0,"d":"0.00 лв."}},{"$f":"C19*E19","v":{"v":0,"d":"0.00 лв."}}]
[null,354,null,"Средни щандове @",null,{"$f":"B20*E20","v":{"v":0,"d":"0.00 лв."}},{"$f":"C20*E20","v":{"v":0,"d":"0.00 лв."}}]
[null,56,null,"Малки щандове @",null,{"$f":"B21*E21","v":{"v":0,"d":"0.00 лв."}},{"$f":"C21*E21","v":{"v":0,"d":"0.00 лв."}}]
[null,"Общо",{"$nulls":3},{"$f":"SUBTOTAL(109,ИзложителиИДоставчици[Очаквани приходи])","v":{"v":0,"d":"0.00 лв."}},{"$f":"SUBTOTAL(109,ИзложителиИДоставчици[Действителни приходи])","v":{"v":0,"d":"0.00 лв."}}]
["Етикетът за \"Разпродажба на артикули\" е в клетката вдясно.","РАЗПРОДАЖБА НА АРТИКУЛИ"]
["Въведете очакван и действителен брой продадени артикули и цени на артикулите в таблицата, започвайки от клетката вдясно. Очакваните и действителните приходи се изчисляват автоматично.","Очакван №","Действителен №","Тип","Цена","Очаквани приходи","Действителни приходи"]
[{"$nulls":3},"Артикули @",null,{"$f":"B25*E25","v":{"v":0,"d":"0.00 лв."}},{"$f":"C25*E25","v":{"v":0,"d":"0.00 лв."}}]
[null,123,null,"Артикули @",null,{"$f":"B26*E26","v":{"v":0,"d":"0.00 лв."}},{"$f":"C26*E26","v":{"v":0,"d":"0.00 лв."}}]
[{"$nulls":3},"Артикули @",null,{"$f":"B27*E27","v":{"v":0,"d":"0.00 лв."}},{"$f":"C27*E27","v":{"v":0,"d":"0.00 лв."}}]
[null,13,null,"Артикули @",null,{"$f":"B28*E28","v":{"v":0,"d":"0.00 лв."}},{"$f":"C28*E28","v":{"v":0,"d":"0.00 лв."}}]
[null,"Общо",{"$nulls":3},{"$f":"SUBTOTAL(109,РазпродажбаНаАртикули[Очаквани приходи])","v":{"v":0,"d":"0.00 лв."}},{"$f":"SUBTOTAL(109,РазпродажбаНаАртикули[Действителни приходи])","v":{"v":0,"d":"0.00 лв."}}]

{"sheet":"Резюме за печалбата и загубата","index":3,"n_rows":8,"n_cols":7,"rows_kept":8,"merged":[[0,1,0,2]]}
["Резюмето и диаграмата за печалбата и загубата, показващи общите приходи и разходи, се актуализират автоматично в този работен лист. Заглавието на този работен лист се актуализира автоматично в клетката вдясно. Подзаглавието е в клетка G1 и G2. Полезни инструкции как да използвате този работен лист, можете да намерите в клетките в тази колона. Следващата инструкция е в клетка A3.",{"$f":"Разходи!B1","v":"Бюджет за събитие за"},null,{"$f":"Разходи!D1","v":"Име на събитие"},null,null,"РЕЗЮМЕ НА ПЕЧАЛБА "]
[{"$nulls":6},"И ЗАГУБА"]
["Стълбовидната диаграма, която сравнява очакваните приходи и разходи и действителните приходи и разходи, е в клетка E3.",{"$nulls":3},"Стълбовидната диаграма, която показва сравнение на очакваните приходи и разходи и действителните приходи и разходи, е в тази клетка."]
["Таблицата \"Резюме\", която започва от клетката вдясно, се актуализира автоматично. Следващата инструкция е в клетка A8."," Общо","Очаквано","Действителни"]
[null,"Общо приходи",{"$f":"Приходи!F10","v":{"v":1936,"d":"1,936.00 лв."}},{"$f":"Приходи!F4","v":{"v":1936,"d":"1,936.00 лв."}}]
[null,"Общо разходи",{"$f":"Разходи!G4","v":{"v":882,"d":"882.00 лв."}},{"$f":"Разходи!H4","v":{"v":302,"d":"302.00 лв."}}]
[]
["Общата очаквана печалба или загуба се изчислява автоматично в клетка C8, а общата действителна печалба или загуба – в клетка D8.","Общо печалба\n(или загуба)",{"$f":"C5-C6","v":{"v":1054,"d":"1,054.00 лв."}},{"$f":"D5-D6","v":{"v":1634,"d":"1,634.00 лв."}}]